[Event "Late-Titled-Tuesday-Blitz-February-13-2024"]
[Site "Chess.com"]
[Date "2024.02.13"]
[Round "9"]
[White "Burgsvik"]
[Black "Championnn-9"]
[Result "1-0"]
[WhiteElo "2334"]
[BlackElo "2497"]
[TimeControl "180+1"]
[EndTime "15:44:12 PST"]
[Termination "Burgsvik won by resignation"]

1. e4 {[%clk 0:02:46.5]} 1... c5 {[%clk 0:02:56.1]} 2. Nf3 {[%clk 0:02:46.2]}
2... e6 {[%clk 0:02:56.7]} 3. d4 {[%clk 0:02:47.1]} 3... cxd4 {[%clk 0:02:57.6]}
4. Nxd4 {[%clk 0:02:47.3]} 4... Nc6 {[%clk 0:02:58.5]} 5. Nc3 {[%clk 0:02:47.1]}
5... Nf6 {[%clk 0:02:57.6]} 6. Be2 {[%clk 0:02:45.3]} 6... Bb4 {[%clk
0:02:57.3]} 7. f3 {[%clk 0:02:41.4]} 7... d5 {[%clk 0:02:54.7]} 8. Bb5 {[%clk
0:02:37.7]} 8... O-O {[%clk 0:02:35.9]} 9. Bxc6 {[%clk 0:02:36.5]} 9... bxc6
{[%clk 0:02:33.6]} 10. e5 {[%clk 0:02:36.5]} 10... Nd7 {[%clk 0:02:27.9]} 11.
Nxc6 {[%clk 0:02:35.7]} 11... Bxc3+ {[%clk 0:02:28.1]} 12. bxc3 {[%clk
0:02:35.8]} 12... Qc7 {[%clk 0:02:28.6]} 13. Ne7+ {[%clk 0:02:34]} 13... Kh8
{[%clk 0:02:29.3]} 14. Nxc8 {[%clk 0:02:33.8]} 14... Qxc3+ {[%clk 0:02:27.5]}
15. Bd2 {[%clk 0:02:32.9]} 15... Qxe5+ {[%clk 0:02:27.9]} 16. Kf2 {[%clk
0:02:32.4]} 16... Raxc8 {[%clk 0:02:27.2]} 17. c3 {[%clk 0:02:32.6]} 17... Nc5
{[%clk 0:02:25.8]} 18. Qe2 {[%clk 0:02:26.1]} 18... Qf5 {[%clk 0:02:24.7]} 19.
g4 {[%clk 0:02:20.9]} 19... Qf6 {[%clk 0:02:18.7]} 20. h4 {[%clk 0:02:17.6]}
20... Ne4+ {[%clk 0:02:17.9]} 21. Kg2 {[%clk 0:02:14.1]} 21... Nxd2 {[%clk
0:02:17.8]} 22. Qxd2 {[%clk 0:02:13.9]} 22... Rxc3 {[%clk 0:02:18.4]} 23. Rhf1
{[%clk 0:02:09.2]} 23... Rfc8 {[%clk 0:02:09]} 24. Rac1 {[%clk 0:02:08.4]} 24...
d4 {[%clk 0:02:07.5]} 25. Kg3 {[%clk 0:01:55.2]} 25... Qe5+ {[%clk 0:02:04.8]}
26. Kh3 {[%clk 0:01:51.1]} 26... h6 {[%clk 0:01:56]} 27. Rce1 {[%clk 0:01:49.4]}
27... Qd5 {[%clk 0:01:55.6]} 28. Qf4 {[%clk 0:01:46.2]} 28... R8c7 {[%clk
0:01:49.9]} 29. Re5 {[%clk 0:01:45.3]} 29... Qc4 {[%clk 0:01:47.8]} 30. Rf2
{[%clk 0:01:41.8]} 30... d3 {[%clk 0:01:43.2]} 31. Re4 {[%clk 0:01:37.1]} 31...
Qc5 {[%clk 0:01:40]} 32. Rd2 {[%clk 0:01:32.9]} 32... Rc1 {[%clk 0:01:36.3]} 33.
Rg2 {[%clk 0:01:19.7]} 33... Rc2 {[%clk 0:01:13]} 34. Rb4 {[%clk 0:01:06.4]}
34... Rxg2 {[%clk 0:01:06.5]} 35. Rb8+ {[%clk 0:01:03.9]} 35... Kh7 {[%clk
0:01:04.2]} 36. Kxg2 {[%clk 0:00:59.4]} 36... Qc2+ {[%clk 0:00:54.1]} 37. Kg3
{[%clk 0:00:59.2]} 37... d2 {[%clk 0:00:48.7]} 38. Rd8 {[%clk 0:00:57.7]} 38...
d1=Q {[%clk 0:00:47.5]} 39. Rxd1 {[%clk 0:00:56.8]} 39... Qxd1 {[%clk
0:00:47.4]} 40. Qxc7 {[%clk 0:00:56.8]} 40... Qg1+ {[%clk 0:00:46.8]} 41. Kh3
{[%clk 0:00:56.9]} 41... Qh1+ {[%clk 0:00:42.2]} 42. Kg3 {[%clk 0:00:56.7]}
42... Qe1+ {[%clk 0:00:39.4]} 43. Kh3 {[%clk 0:00:55.3]} 43... f5 {[%clk
0:00:39]} 44. Qc2 {[%clk 0:00:51.3]} 44... Qe4 {[%clk 0:00:36.4]} 45. fxe4
{[%clk 0:00:50.8]} 45... fxg4+ {[%clk 0:00:29.2]} 46. Kxg4 {[%clk 0:00:49.6]}
46... e5 {[%clk 0:00:30.1]} 47. Kf5 {[%clk 0:00:49.2]} 47... a5 {[%clk 0:00:29]}
48. h5 {[%clk 0:00:48.4]} 48... a4 {[%clk 0:00:29.9]} 49. Qc7 {[%clk 0:00:46.1]}
49... a3 {[%clk 0:00:30.8]} 50. Qe7 {[%clk 0:00:43.8]} 50... Kh8 {[%clk
0:00:28.6]} 51. Kg6 {[%clk 0:00:43.5]} 1-0

[Event "Late-Titled-Tuesday-Blitz-February-13-2024"]
[Site "Chess.com"]
[Date "2024.02.13"]
[Round "9"]
[White "yuriydovzik"]
[Black "Rinqed222"]
[Result "0-1"]
[WhiteElo "2109"]
[BlackElo "2266"]
[TimeControl "180+1"]
[EndTime "15:44:13 PST"]
[Termination "Rinqed222 won on time"]

1. b3 {[%clk 0:02:57.9]} 1... e5 {[%clk 0:02:58.3]} 2. Bb2 {[%clk 0:02:56.5]}
2... d6 {[%clk 0:02:58.7]} 3. e3 {[%clk 0:02:49.7]} 3... f5 {[%clk 0:02:57.7]}
4. d4 {[%clk 0:02:47.8]} 4... exd4 {[%clk 0:02:53.1]} 5. exd4 {[%clk 0:02:45.9]}
5... Nf6 {[%clk 0:02:52.6]} 6. Bd3 {[%clk 0:02:41.3]} 6... g6 {[%clk 0:02:48.8]}
7. Ne2 {[%clk 0:02:35.8]} 7... Bg7 {[%clk 0:02:49.1]} 8. d5 {[%clk 0:02:25.4]}
8... O-O {[%clk 0:02:49]} 9. c4 {[%clk 0:02:24.9]} 9... Nbd7 {[%clk 0:02:47.7]}
10. O-O {[%clk 0:02:22.2]} 10... Ne5 {[%clk 0:02:47.5]} 11. Bc2 {[%clk
0:02:08.7]} 11... c6 {[%clk 0:02:41]} 12. dxc6 {[%clk 0:02:05.1]} 12... bxc6
{[%clk 0:02:40.7]} 13. Nbc3 {[%clk 0:01:59.4]} 13... Bb7 {[%clk 0:02:33.3]} 14.
Nf4 {[%clk 0:01:51]} 14... Re8 {[%clk 0:02:22.5]} 15. Ba3 {[%clk 0:01:41.1]}
15... Qa5 {[%clk 0:02:10.1]} 16. Na4 {[%clk 0:01:27.4]} 16... Rad8 {[%clk
0:01:55.9]} 17. Bb2 {[%clk 0:01:16.3]} 17... Qc7 {[%clk 0:01:52.7]} 18. Qd2
{[%clk 0:00:48]} 18... Ne4 {[%clk 0:01:45.1]} 19. Bxe4 {[%clk 0:00:45.2]} 19...
fxe4 {[%clk 0:01:46]} 20. Rae1 {[%clk 0:00:34.9]} 20... d5 {[%clk 0:01:45.8]}
21. cxd5 {[%clk 0:00:30.7]} 21... cxd5 {[%clk 0:01:44]} 22. Rc1 {[%clk
0:00:27.5]} 22... Qf7 {[%clk 0:01:42.4]} 23. Nc5 {[%clk 0:00:24.6]} 23... Bc6
{[%clk 0:01:41]} 24. Ne2 {[%clk 0:00:17.3]} 24... Qf5 {[%clk 0:01:20]} 25. Nd4
{[%clk 0:00:15.9]} 25... Qg4 {[%clk 0:01:20.1]} 26. h3 {[%clk 0:00:15.1]} 26...
Qh5 {[%clk 0:01:09]} 27. Nce6 {[%clk 0:00:12.9]} 27... Bh6 {[%clk 0:00:43.6]}
28. Qc3 {[%clk 0:00:06.9]} 28... Nd3 {[%clk 0:00:28.7]} 29. Nxc6 {[%clk
0:00:03.8]} 29... Nxb2 {[%clk 0:00:20.4]} 0-1

[Event "Late-Titled-Tuesday-Blitz-February-13-2024"]
[Site "Chess.com"]
[Date "2024.02.13"]
[Round "9"]
[White "TanitoluwaAps116"]
[Black "annasargsyan_m"]
[Result "0-1"]
[WhiteElo "2767"]
[BlackElo "2599"]
[TimeControl "180+1"]
[EndTime "15:44:16 PST"]
[Termination "annasargsyan_m won by checkmate"]

1. Nf3 {[%clk 0:02:56]} 1... d5 {[%clk 0:02:46.5]} 2. b3 {[%clk 0:02:55.4]} 2...
Nf6 {[%clk 0:02:40]} 3. Bb2 {[%clk 0:02:55]} 3... c5 {[%clk 0:02:38.3]} 4. e3
{[%clk 0:02:55.3]} 4... Nc6 {[%clk 0:02:38.9]} 5. Bb5 {[%clk 0:02:55.7]} 5...
Bg4 {[%clk 0:02:30.3]} 6. Bxc6+ {[%clk 0:02:55.2]} 6... bxc6 {[%clk 0:02:29.1]}
7. d3 {[%clk 0:02:55.6]} 7... e6 {[%clk 0:02:29.3]} 8. Nbd2 {[%clk 0:02:55.7]}
8... Bd6 {[%clk 0:02:29.9]} 9. h3 {[%clk 0:02:55.8]} 9... Bh5 {[%clk 0:02:29.5]}
10. g4 {[%clk 0:02:56.2]} 10... Bg6 {[%clk 0:02:29.3]} 11. Ne5 {[%clk
0:02:47.8]} 11... Qc7 {[%clk 0:02:28.2]} 12. Ndf3 {[%clk 0:02:42.6]} 12... O-O
{[%clk 0:02:22.6]} 13. h4 {[%clk 0:02:40.7]} 13... h5 {[%clk 0:02:18.6]} 14. Rg1
{[%clk 0:02:23.5]} 14... Nxg4 {[%clk 0:02:13.1]} 15. Nxg4 {[%clk 0:02:24.4]}
15... hxg4 {[%clk 0:02:13.2]} 16. Rxg4 {[%clk 0:02:25.3]} 16... e5 {[%clk
0:02:09.3]} 17. Rg5 {[%clk 0:01:54.1]} 17... d4 {[%clk 0:01:56.8]} 18. h5 {[%clk
0:01:49.7]} 18... Bh7 {[%clk 0:01:55.4]} 19. Qd2 {[%clk 0:01:42.4]} 19... f6
{[%clk 0:01:51.3]} 20. Rg4 {[%clk 0:01:26]} 20... Qd7 {[%clk 0:01:48]} 21. Rg1
{[%clk 0:01:17.2]} 21... Qh3 {[%clk 0:01:44]} 22. Qe2 {[%clk 0:01:05.9]} 22...
Qxh5 {[%clk 0:01:42.5]} 23. O-O-O {[%clk 0:00:54.5]} 23... Qf5 {[%clk
0:01:26.8]} 24. e4 {[%clk 0:00:50.2]} 24... Qd7 {[%clk 0:01:12.7]} 25. Nh4
{[%clk 0:00:48.1]} 25... g5 {[%clk 0:01:08.7]} 26. Qf3 {[%clk 0:00:39.6]} 26...
Rf7 {[%clk 0:01:08]} 27. Rg2 {[%clk 0:00:26]} 27... Kf8 {[%clk 0:01:03.8]} 28.
Nf5 {[%clk 0:00:24.6]} 28... Bxf5 {[%clk 0:01:03.8]} 29. exf5 {[%clk 0:00:25.1]}
29... Rh7 {[%clk 0:01:03.4]} 30. Kb1 {[%clk 0:00:20.7]} 30... Kf7 {[%clk
0:00:59.6]} 31. Ba3 {[%clk 0:00:17.6]} 31... Rah8 {[%clk 0:00:59.7]} 32. Rdg1
{[%clk 0:00:16.7]} 32... Be7 {[%clk 0:01:00]} 33. Qe2 {[%clk 0:00:13]} 33... Qd5
{[%clk 0:01:00.4]} 34. f3 {[%clk 0:00:09.2]} 34... Rh3 {[%clk 0:00:59.6]} 35.
Rg3 {[%clk 0:00:08.3]} 35... Rxg3 {[%clk 0:00:54]} 36. Rxg3 {[%clk 0:00:09.2]}
36... Rh1+ {[%clk 0:00:54.2]} 37. Kb2 {[%clk 0:00:09.5]} 37... c4 {[%clk
0:00:54.6]} 38. dxc4 {[%clk 0:00:05.8]} 38... Bxa3+ {[%clk 0:00:54.1]} 39. Kxa3
{[%clk 0:00:06.7]} 39... Qa5+ {[%clk 0:00:52.8]} 40. Kb2 {[%clk 0:00:07.2]}
40... Qc3+ {[%clk 0:00:50.5]} 41. Ka3 {[%clk 0:00:07.6]} 41... Rb1 {[%clk
0:00:44.7]} 42. Ka4 {[%clk 0:00:02.7]} 42... a5 {[%clk 0:00:43.7]} 43. a3 {[%clk
0:00:03]} 43... Ra1 {[%clk 0:00:44.2]} 44. c5 {[%clk 0:00:01.7]} 44... Qb4#
{[%clk 0:00:44]} 0-1

[Event "Late-Titled-Tuesday-Blitz-February-13-2024"]
[Site "Chess.com"]
[Date "2024.02.13"]
[Round "9"]
[White "combidharma"]
[Black "vi_pranav"]
[Result "0-1"]
[WhiteElo "2714"]
[BlackElo "3021"]
[TimeControl "180+1"]
[EndTime "15:44:18 PST"]
[Termination "vi_pranav won by resignation"]

1. e4 {[%clk 0:02:57.3]} 1... e5 {[%clk 0:03:00]} 2. Nf3 {[%clk 0:02:55]} 2...
Nc6 {[%clk 0:02:59.6]} 3. d4 {[%clk 0:02:54.6]} 3... exd4 {[%clk 0:02:59.6]} 4.
Nxd4 {[%clk 0:02:55.5]} 4... Bc5 {[%clk 0:02:59.2]} 5. Nb3 {[%clk 0:02:54]} 5...
Bb6 {[%clk 0:02:58.9]} 6. Nc3 {[%clk 0:02:52.7]} 6... Nf6 {[%clk 0:02:58.6]} 7.
Qe2 {[%clk 0:02:46.8]} 7... a5 {[%clk 0:02:57]} 8. a4 {[%clk 0:02:41.8]} 8...
O-O {[%clk 0:02:55]} 9. Bg5 {[%clk 0:02:41.4]} 9... h6 {[%clk 0:02:50.8]} 10.
Bh4 {[%clk 0:02:40.8]} 10... d6 {[%clk 0:02:41]} 11. O-O-O {[%clk 0:02:38.5]}
11... Be6 {[%clk 0:02:39.4]} 12. Nd5 {[%clk 0:02:12.9]} 12... Bxd5 {[%clk
0:02:34.4]} 13. exd5 {[%clk 0:02:13.8]} 13... Re8 {[%clk 0:02:20.9]} 14. Qf3
{[%clk 0:02:02.4]} 14... Ne5 {[%clk 0:02:20.5]} 15. Bxf6 {[%clk 0:01:54.8]}
15... Qxf6 {[%clk 0:02:16.8]} 16. Qxf6 {[%clk 0:01:55.1]} 16... gxf6 {[%clk
0:02:17.7]} 17. f3 {[%clk 0:01:54.5]} 17... f5 {[%clk 0:02:13.7]} 18. Nd4 {[%clk
0:01:44.9]} 18... f4 {[%clk 0:02:11.5]} 19. Bb5 {[%clk 0:01:40.3]} 19... Rf8
{[%clk 0:01:41.8]} 20. Nf5 {[%clk 0:01:39.9]} 20... Kh7 {[%clk 0:01:41.1]} 21.
Rde1 {[%clk 0:01:32.1]} 21... Rg8 {[%clk 0:01:39.3]} 22. g4 {[%clk 0:01:02]}
22... Nxf3 {[%clk 0:01:23.3]} 23. Re7 {[%clk 0:01:01.5]} 23... Ne5 {[%clk
0:01:22.8]} 24. h3 {[%clk 0:00:55.4]} 24... h5 {[%clk 0:01:16.3]} 25. Kd2 {[%clk
0:00:31.6]} 25... Kg6 {[%clk 0:01:09.3]} 26. Bd3 {[%clk 0:00:29]} 26... Kf6
{[%clk 0:01:05.6]} 27. Rf1 {[%clk 0:00:19.6]} 27... Rg5 {[%clk 0:00:59.2]} 28.
Rxe5 {[%clk 0:00:02.7]} 28... dxe5 {[%clk 0:00:59.1]} 29. Ng3 {[%clk 0:00:02.2]}
29... Ke7 {[%clk 0:00:33.5]} 30. Nxh5 {[%clk 0:00:02.6]} 30... Rh8 {[%clk
0:00:31.2]} 31. Be4 {[%clk 0:00:02.3]} 31... f5 {[%clk 0:00:31]} 32. Bxf5 {[%clk
0:00:02.2]} 32... Rxf5 {[%clk 0:00:30.9]} 33. gxf5 {[%clk 0:00:03.1]} 33... Rxh5
{[%clk 0:00:31.4]} 0-1

[Event "Late-Titled-Tuesday-Blitz-February-13-2024"]
[Site "Chess.com"]
[Date "2024.02.13"]
[Round "9"]
[White "EsmeraldasAnderson03"]
[Black "FMJoseHerrera"]
[Result "0-1"]
[WhiteElo "2461"]
[BlackElo "2722"]
[TimeControl "180+1"]
[EndTime "15:44:19 PST"]
[Termination "FMJoseHerrera won on time"]

1. d4 {[%clk 0:02:59.9]} 1... Nf6 {[%clk 0:02:55.3]} 2. c4 {[%clk 0:02:59.3]}
2... c5 {[%clk 0:02:54.9]} 3. d5 {[%clk 0:02:59.2]} 3... b5 {[%clk 0:02:55.1]}
4. cxb5 {[%clk 0:03:00.1]} 4... a6 {[%clk 0:02:55.6]} 5. bxa6 {[%clk 0:03:01]}
5... e6 {[%clk 0:02:55.9]} 6. Nc3 {[%clk 0:03:01.9]} 6... exd5 {[%clk
0:02:55.6]} 7. Nxd5 {[%clk 0:03:01.8]} 7... Be7 {[%clk 0:02:56]} 8. Nxe7 {[%clk
0:02:57.9]} 8... Qxe7 {[%clk 0:02:56.9]} 9. g3 {[%clk 0:02:58]} 9... O-O {[%clk
0:02:45.9]} 10. Bg2 {[%clk 0:02:57.9]} 10... Nc6 {[%clk 0:02:46.3]} 11. Nf3
{[%clk 0:02:58.3]} 11... Bxa6 {[%clk 0:02:45.9]} 12. e3 {[%clk 0:02:16]} 12...
Nb4 {[%clk 0:02:37.1]} 13. Bf1 {[%clk 0:02:14]} 13... Qe6 {[%clk 0:02:37.6]} 14.
Be2 {[%clk 0:02:09.1]} 14... Qh3 {[%clk 0:02:04.7]} 15. a3 {[%clk 0:02:05.3]}
15... Nc6 {[%clk 0:01:38.9]} 16. Bxa6 {[%clk 0:02:03.2]} 16... Rxa6 {[%clk
0:01:39.8]} 17. Bd2 {[%clk 0:01:59.2]} 17... Ne4 {[%clk 0:01:35.9]} 18. Bc3
{[%clk 0:01:40.3]} 18... Qg2 {[%clk 0:01:32.3]} 19. Rf1 {[%clk 0:01:37.6]} 19...
d5 {[%clk 0:01:32.3]} 20. Nh4 {[%clk 0:01:28.3]} 20... Qxh2 {[%clk 0:01:29.1]}
21. Qxd5 {[%clk 0:01:26.4]} 21... Nxc3 {[%clk 0:01:18.8]} 22. bxc3 {[%clk
0:01:24.5]} 22... Rd8 {[%clk 0:01:08.8]} 23. Qe4 {[%clk 0:00:52.7]} 23... Qh3
{[%clk 0:01:04]} 24. Rh1 {[%clk 0:00:52.5]} 24... Qd7 {[%clk 0:00:57.1]} 25. Kf1
{[%clk 0:00:27.9]} 25... Re8 {[%clk 0:00:54.8]} 26. Qf5 {[%clk 0:00:24.5]} 26...
Qb7 {[%clk 0:00:49.6]} 27. Nf3 {[%clk 0:00:20.7]} 27... g6 {[%clk 0:00:47]} 28.
Qh3 {[%clk 0:00:19.3]} 28... h5 {[%clk 0:00:44.4]} 29. Kg1 {[%clk 0:00:18.4]}
29... Ra4 {[%clk 0:00:41.2]} 30. Kh2 {[%clk 0:00:17.8]} 30... Ne7 {[%clk
0:00:40.6]} 31. Qg2 {[%clk 0:00:17.2]} 31... Nf5 {[%clk 0:00:40.1]} 32. Ng5
{[%clk 0:00:17.4]} 32... Qe7 {[%clk 0:00:39]} 33. Nh3 {[%clk 0:00:17]} 33... Qf6
{[%clk 0:00:38.4]} 34. Nf4 {[%clk 0:00:17.5]} 34... Qxc3 {[%clk 0:00:37.8]} 35.
g4 {[%clk 0:00:17.2]} 35... Nxe3 {[%clk 0:00:31.7]} 36. f3 {[%clk 0:00:16.6]}
36... Nxg2 {[%clk 0:00:29.1]} 0-1

[Event "Late-Titled-Tuesday-Blitz-February-13-2024"]
[Site "Chess.com"]
[Date "2024.02.13"]
[Round "9"]
[White "GothamChess"]
[Black "korkmaz16"]
[Result "1-0"]
[WhiteElo "2719"]
[BlackElo "2448"]
[TimeControl "180+1"]
[EndTime "15:44:20 PST"]
[Termination "GothamChess won by checkmate"]

1. e4 {[%clk 0:02:58.6]} 1... e5 {[%clk 0:02:58.9]} 2. Nf3 {[%clk 0:02:58.4]}
2... Nc6 {[%clk 0:02:58.7]} 3. c3 {[%clk 0:02:59.1]} 3... Nf6 {[%clk 0:02:49.9]}
4. d4 {[%clk 0:02:59.4]} 4... exd4 {[%clk 0:02:43.3]} 5. e5 {[%clk 0:02:59.5]}
5... Ne4 {[%clk 0:02:36.2]} 6. Qe2 {[%clk 0:02:59.6]} 6... Nc5 {[%clk
0:01:51.3]} 7. cxd4 {[%clk 0:02:59.6]} 7... Ne6 {[%clk 0:01:51.8]} 8. d5 {[%clk
0:02:53.1]} 8... Ned4 {[%clk 0:01:49.6]} 9. Qe4 {[%clk 0:02:34]} 9... Bb4+
{[%clk 0:01:12.6]} 10. Nc3 {[%clk 0:02:21.2]} 10... Nxf3+ {[%clk 0:01:10.5]} 11.
gxf3 {[%clk 0:02:21]} 11... Bxc3+ {[%clk 0:01:08.6]} 12. bxc3 {[%clk 0:02:21.6]}
12... Ne7 {[%clk 0:01:08.8]} 13. Rg1 {[%clk 0:02:11]} 13... d6 {[%clk
0:01:03.7]} 14. e6 {[%clk 0:02:06.6]} 14... O-O {[%clk 0:00:59.1]} 15. Bh6
{[%clk 0:01:03.9]} 15... Ng6 {[%clk 0:00:53.3]} 16. Bg5 {[%clk 0:01:04]} 16...
f6 {[%clk 0:00:51.4]} 17. Be3 {[%clk 0:01:01.7]} 17... Qe7 {[%clk 0:00:47.6]}
18. Bh3 {[%clk 0:00:51.5]} 18... c6 {[%clk 0:00:46.8]} 19. c4 {[%clk 0:00:50.6]}
19... cxd5 {[%clk 0:00:45.7]} 20. cxd5 {[%clk 0:00:50.4]} 20... Qc7 {[%clk
0:00:34.6]} 21. Rc1 {[%clk 0:00:44.9]} 21... Qa5+ {[%clk 0:00:34.3]} 22. Kf1
{[%clk 0:00:40.4]} 22... b6 {[%clk 0:00:31.5]} 23. Bf5 {[%clk 0:00:31.1]} 23...
Ba6+ {[%clk 0:00:22.9]} 24. Kg2 {[%clk 0:00:31]} 24... Qxa2 {[%clk 0:00:22.8]}
25. Rc7 {[%clk 0:00:26.9]} 25... Rae8 {[%clk 0:00:19.4]} 26. Kh1 {[%clk
0:00:25.2]} 26... Bc4 {[%clk 0:00:18.8]} 27. Rxc4 {[%clk 0:00:17.7]} 27... Ne5
{[%clk 0:00:16]} 28. Rc7 {[%clk 0:00:16.3]} 28... g5 {[%clk 0:00:13.7]} 29.
Bxh7+ {[%clk 0:00:12.7]} 29... Kh8 {[%clk 0:00:13.9]} 30. Bf5 {[%clk 0:00:12.4]}
30... Re7 {[%clk 0:00:14.1]} 31. Rxe7 {[%clk 0:00:11.7]} 31... Qc4 {[%clk
0:00:12.5]} 32. Qxc4 {[%clk 0:00:09]} 32... Nxc4 {[%clk 0:00:12.9]} 33. Bxg5
{[%clk 0:00:09.3]} 33... fxg5 {[%clk 0:00:12.7]} 34. Rh7+ {[%clk 0:00:09.4]}
34... Kg8 {[%clk 0:00:12.9]} 35. Rxg5# {[%clk 0:00:09.9]} 1-0

[Event "Late-Titled-Tuesday-Blitz-February-13-2024"]
[Site "Chess.com"]
[Date "2024.02.13"]
[Round "9"]
[White "AlexeiShirov"]
[Black "mishanick"]
[Result "0-1"]
[WhiteElo "2858"]
[BlackElo "2976"]
[TimeControl "180+1"]
[EndTime "15:44:22 PST"]
[Termination "mishanick won by resignation"]

1. e4 {[%clk 0:03:00.9]} 1... c5 {[%clk 0:03:00.4]} 2. Nf3 {[%clk 0:03:00.9]}
2... e6 {[%clk 0:03:01]} 3. d4 {[%clk 0:03:00.9]} 3... cxd4 {[%clk 0:03:01.9]}
4. Nxd4 {[%clk 0:03:01]} 4... Nc6 {[%clk 0:03:02.5]} 5. Nc3 {[%clk 0:03:00.9]}
5... a6 {[%clk 0:03:03.2]} 6. Be3 {[%clk 0:02:51]} 6... Nf6 {[%clk 0:03:02.1]}
7. Nxc6 {[%clk 0:02:46.3]} 7... bxc6 {[%clk 0:03:01.5]} 8. e5 {[%clk 0:02:44.3]}
8... Nd5 {[%clk 0:02:59.1]} 9. Nxd5 {[%clk 0:02:42.9]} 9... cxd5 {[%clk
0:02:57.7]} 10. Bd3 {[%clk 0:02:42.3]} 10... d6 {[%clk 0:02:34]} 11. Bd4 {[%clk
0:02:35.7]} 11... Qg5 {[%clk 0:02:09]} 12. Qe2 {[%clk 0:02:26.3]} 12... dxe5
{[%clk 0:02:06.2]} 13. Bxe5 {[%clk 0:02:25.6]} 13... Bc5 {[%clk 0:02:05.9]} 14.
f4 {[%clk 0:02:20.6]} 14... Qh6 {[%clk 0:01:59]} 15. g3 {[%clk 0:02:06.5]} 15...
O-O {[%clk 0:01:54.4]} 16. O-O-O {[%clk 0:02:05.5]} 16... Qh3 {[%clk 0:01:38.6]}
17. Kb1 {[%clk 0:02:00.3]} 17... Bd7 {[%clk 0:01:36.2]} 18. g4 {[%clk
0:01:54.8]} 18... Bc6 {[%clk 0:01:20.5]} 19. Rhf1 {[%clk 0:01:53]} 19... Rfe8
{[%clk 0:01:14.9]} 20. Rf3 {[%clk 0:01:47.3]} 20... Qh4 {[%clk 0:00:52.2]} 21.
Bxh7+ {[%clk 0:01:20.8]} 21... Qxh7 {[%clk 0:00:50.2]} 22. Rc3 {[%clk
0:01:13.9]} 22... Bb5 {[%clk 0:00:49.2]} 23. Qg2 {[%clk 0:01:12.2]} 23... Bb4
{[%clk 0:00:39.4]} 24. Rh3 {[%clk 0:01:08]} 24... Qe4 {[%clk 0:00:39.2]} 25. Qg3
{[%clk 0:01:07.3]} 25... Rac8 {[%clk 0:00:32.6]} 26. Rc1 {[%clk 0:01:05.1]}
26... f6 {[%clk 0:00:24.1]} 27. Bxf6 {[%clk 0:01:01.2]} 27... gxf6 {[%clk
0:00:23.4]} 28. g5 {[%clk 0:01:01.3]} 28... Kf7 {[%clk 0:00:17.7]} 29. Rh6
{[%clk 0:00:59.5]} 29... Rg8 {[%clk 0:00:17.4]} 30. Rxf6+ {[%clk 0:00:58.4]}
30... Ke7 {[%clk 0:00:18]} 31. f5 {[%clk 0:00:58.2]} 31... exf5 {[%clk
0:00:16.4]} 32. a3 {[%clk 0:00:49.3]} 32... Ba4 {[%clk 0:00:09.3]} 33. axb4
{[%clk 0:00:43.8]} 33... Bxc2+ {[%clk 0:00:09.3]} 34. Ka1 {[%clk 0:00:42.8]}
34... f4 {[%clk 0:00:09.7]} 35. Qh4 {[%clk 0:00:35.6]} 35... Qxb4 {[%clk
0:00:06]} 36. Rxf4 {[%clk 0:00:30.3]} 36... Qa5+ {[%clk 0:00:05.6]} 0-1

[Event "Late-Titled-Tuesday-Blitz-February-13-2024"]
[Site "Chess.com"]
[Date "2024.02.13"]
[Round "9"]
[White "A-Fier"]
[Black "Fandorine"]
[Result "0-1"]
[WhiteElo "2783"]
[BlackElo "2954"]
[TimeControl "180+1"]
[EndTime "15:44:24 PST"]
[Termination "Fandorine won by resignation"]

1. e4 {[%clk 0:03:00.9]} 1... e5 {[%clk 0:02:57.1]} 2. f4 {[%clk 0:03:01.4]}
2... exf4 {[%clk 0:02:51]} 3. Nf3 {[%clk 0:03:02]} 3... d6 {[%clk 0:02:51.2]} 4.
d4 {[%clk 0:03:01.9]} 4... g5 {[%clk 0:02:39.2]} 5. h4 {[%clk 0:03:02.2]} 5...
g4 {[%clk 0:02:38.7]} 6. Ng1 {[%clk 0:03:02.7]} 6... h5 {[%clk 0:02:28.9]} 7.
Bxf4 {[%clk 0:03:02.2]} 7... Bh6 {[%clk 0:02:29.8]} 8. Ne2 {[%clk 0:02:59.3]}
8... Nc6 {[%clk 0:02:29.8]} 9. Nbc3 {[%clk 0:02:59.1]} 9... Bd7 {[%clk
0:02:27.2]} 10. Qd2 {[%clk 0:02:59]} 10... Nce7 {[%clk 0:02:02.7]} 11. O-O-O
{[%clk 0:02:56.4]} 11... Ng6 {[%clk 0:02:01.6]} 12. Bxh6 {[%clk 0:02:56.3]}
12... Nxh6 {[%clk 0:02:02.5]} 13. g3 {[%clk 0:02:56.7]} 13... c6 {[%clk
0:02:01.2]} 14. Nf4 {[%clk 0:02:49.4]} 14... Nxf4 {[%clk 0:01:50.8]} 15. gxf4
{[%clk 0:02:38.5]} 15... Qe7 {[%clk 0:01:47.3]} 16. d5 {[%clk 0:02:38.7]} 16...
O-O-O {[%clk 0:01:44.9]} 17. dxc6 {[%clk 0:02:30.2]} 17... Bxc6 {[%clk
0:01:44.7]} 18. Bd3 {[%clk 0:02:30.3]} 18... Kb8 {[%clk 0:01:44.2]} 19. Rhe1
{[%clk 0:02:18.3]} 19... Qxh4 {[%clk 0:01:42.1]} 20. Bb5 {[%clk 0:02:18.9]}
20... Qe7 {[%clk 0:01:36.2]} 21. Bxc6 {[%clk 0:02:19.2]} 21... bxc6 {[%clk
0:01:36.7]} 22. Re3 {[%clk 0:02:19.2]} 22... h4 {[%clk 0:01:33.5]} 23. Na4
{[%clk 0:02:19.5]} 23... Ka8 {[%clk 0:01:27.2]} 24. Qa5 {[%clk 0:02:19]} 24...
Rb8 {[%clk 0:01:27.6]} 25. Rc3 {[%clk 0:02:03.9]} 25... Rb5 {[%clk 0:01:18.2]}
26. Qa6 {[%clk 0:01:56]} 26... Qb7 {[%clk 0:01:18.5]} 27. Qxb7+ {[%clk
0:01:50.9]} 27... Rxb7 {[%clk 0:01:03.6]} 28. Rxc6 {[%clk 0:01:49.9]} 28... h3
{[%clk 0:00:56.3]} 29. Rcxd6 {[%clk 0:01:49.6]} 29... g3 {[%clk 0:00:42.3]} 30.
Nc5 {[%clk 0:01:29.3]} 30... Rbb8 {[%clk 0:00:38.1]} 31. R6d3 {[%clk 0:01:03]}
31... Rbg8 {[%clk 0:00:33.2]} 32. Rh1 {[%clk 0:00:40]} 32... g2 {[%clk
0:00:29.3]} 33. Rdxh3 {[%clk 0:00:40.1]} 33... gxh1=Q+ {[%clk 0:00:26.7]} 34.
Rxh1 {[%clk 0:00:41]} 34... Ng4 {[%clk 0:00:26.1]} 35. Rd1 {[%clk 0:00:40.8]}
35... Ne3 {[%clk 0:00:16.1]} 36. Rd3 {[%clk 0:00:37.3]} 36... Rg2 {[%clk
0:00:13.6]} 37. b3 {[%clk 0:00:18.1]} 37... Rxc2+ {[%clk 0:00:12.6]} 0-1